[Event "FIDE WYCC Girls U14 2023"]
[Site "Montesilvano"]
[Date "2023.11.24"]
[Round "11.32"]
[White "Cutiyog, Jirah Floravie"]
[Black "Qi, Jenny"]
[Result "1/2-1/2"]
[ECO "A46"]
[WhiteElo "1305"]
[BlackElo "1737"]
[Annotator "NA"]
[PlyCount "100"]
[EventDate "2023.11.13"]
[EventType "swiss"]
[EventCountry "ITA"]
[SourceTitle "playchess.com"]
[Source "ChessBase"]
[SourceQuality "1"]
[TimeControl "40/5400+30:1800+30"]

1. d4 {[%emt 0:00:01]} Nf6 {[%emt 0:00:10]} 2. Nf3 {[%emt 0:00:08]} e6 {[%emt 0:01:02]} 3. g3 {[%emt 0:00:08]} Nc6 {[%emt 0:02:08]} 4. Bg2 {[%emt 0:00:28]} d5 {[%emt 0:00:43]} 5. O-O {[%emt 0:00:26]} Bd6 {[%emt 0:04:45]} 6. b3 {[%emt 0:02:43]} O-O {[%emt 0:08:01]} 7. Bb2 {[%emt 0:01:16]} Re8 {[%emt 0:06:58]} 8. Nbd2 {[%emt 0:06:29]} e5 {[%emt 0:06:21]} 9. dxe5 {[%emt 0:04:15]} Nxe5 {[%emt 0:00:31]} 10. c4 {[%emt 0:00:45]} c6 {[%emt 0:08:11]} 11. cxd5 {[%emt 0:02:48]} Nxd5 {[%emt 0:00:59]} 12. Nxe5 {[%emt 0:00:14]} Bxe5 {[%emt 0:01:07]} 13. Bxe5 {[%emt 0:00:20]} Rxe5 {[%emt 0:00:13]} 14. Nc4 {[%emt 0:00:05]} Re8 {[%emt 0:03:07]} 15. Bxd5 {[%emt 0:06:36]} cxd5 {[%emt 0:00:43]} 16. Ne3 {[%emt 0:00:45]} d4 {[%emt 0:03:02]} 17. Nc2 {[%emt 0:01:19]} Bh3 {[%emt 0:01:40]} 18. Re1 {[%emt 0:02:26]} Qd5 {[%emt 0:00:53]} 19. f3 {[%emt 0:00:26]} Rad8 {[%emt 0:08:21]} 20. Nb4 {[%emt 0:01:18]} Qe6 {[%emt 0:07:51]} 21. Qc1 {[%emt 0:07:10]} Qe3+ {[%emt 0:05:24]} 22. Qxe3 {[%emt 0:00:28]} dxe3 {[%emt 0:00:27]} 23. Red1 {[%emt 0:03:52]} Rd2 {[%emt 0:14:57]} 24. Rxd2 {[%emt 0:01:34]} exd2 {[%emt 0:00:07]} 25. Kf2 {[%emt 0:00:05]} Rc8 {[%emt 0:05:14]} 26. Rd1 {[%emt 0:01:33]} a5 {[%emt 0:01:01]} 27. Nd3 {[%emt 0:02:12]} Rc2 {[%emt 0:01:45]} 28. Ke3 {[%emt 0:00:54]} Rxa2 {[%emt 0:02:04]} 29. Rxd2 {[%emt 0:00:15]} Rxd2 {[%emt 0:00:25]} 30. Kxd2 {[%emt 0:00:06]} Be6 {[%emt 0:00:43]} 31. Kc3 {[%emt 0:00:30]} b6 {[%emt 0:02:04]} 32. Ne5 {[%emt 0:00:49]} b5 {[%emt 0:01:22]} 33. Nc6 {[%emt 0:02:02]} a4 {[%emt 0:01:03]} 34. bxa4 {[%emt 0:00:41]} bxa4 {[%emt 0:00:13]} 35. Nd4 {[%emt 0:00:31]} Bd7 {[%emt 0:00:48]} 36. e3 {[%emt 0:02:08]} f5 {[%emt 0:02:11]} 37. Kb4 {[%emt 0:01:38]} Kf7 {[%emt 0:00:26]} 38. Ne2 {[%emt 0:05:56]} Bc6 {[%emt 0:00:49]} 39. Nd4 {[%emt 0:00:35]} Bd7 {[%emt 0:00:16]} 40. Ne2 {[%emt 0:00:00]} Kg6 {[%emt 0:00:00]} 41. Nc3 {[%emt 0:04:43]} Bc6 {[%emt 0:03:50]} 42. Kc5 {[%emt 0:02:28]} Bxf3 {[%emt 0:03:24]} 43. Nxa4 {[%emt 0:00:12]} Kg5 {[%emt 0:01:25]} 44. Kd6 {[%emt 0:02:22]} Kg4 {[%emt 0:03:02]} 45. Ke5 {[%emt 0:00:38]} Be4 {[%emt 0:01:41]} 46. Nc5 {[%emt 0:00:47]} Kf3 {[%emt 0:06:22]} 47. Ne6 {[%emt 0:00:55]} g6 {[%emt 0:01:09]} 48. Ng5+ {[%emt 0:01:04]} Kxe3 {[%emt 0:00:20]} 49. Nxh7 {[%emt 0:00:06]} Kf3 {[%emt 0:00:21]} 50. Ng5+ {[%emt 0:00:52]} Kg2 {[%emt 0:00:24]} 1/2-1/2

[Event "FIDE WYCC Girls U14 2023"]
[Site "Montesilvano"]
[Date "2023.11.24"]
[Round "11.33"]
[White "Michalska, Lena"]
[Black "Petergova, Stella"]
[Result "1-0"]
[ECO "A04"]
[WhiteElo "1640"]
[BlackElo "1191"]
[Annotator "NA"]
[PlyCount "183"]
[EventDate "2023.11.13"]
[EventType "swiss"]
[EventCountry "ITA"]
[SourceTitle "playchess.com"]
[Source "ChessBase"]
[SourceQuality "1"]
[TimeControl "40/5400+30:1800+30"]

1. Nf3 {[%emt 0:00:01]} c5 {[%emt 0:00:15]} 2. g3 {[%emt 0:00:05]} Nc6 {[%emt 0:00:22]} 3. Bg2 {[%emt 0:00:07]} d5 {[%emt 0:00:44]} 4. c3 {[%emt 0:00:30]} e6 {[%emt 0:00:55]} 5. d4 {[%emt 0:00:12]} Nf6 {[%emt 0:00:26]} 6. Bg5 {[%emt 0:00:18]} h6 {[%emt 0:00:49]} 7. Bf4 {[%emt 0:00:09]} b6 {[%emt 0:03:46]} 8. Nbd2 {[%emt 0:07:41]} Bd6 {[%emt 0:00:58]} 9. Bxd6 {[%emt 0:01:25]} Qxd6 {[%emt 0:00:09]} 10. O-O {[%emt 0:01:26]} O-O {[%emt 0:00:21]} 11. Re1 {[%emt 0:00:28]} Bb7 {[%emt 0:04:15]} 12. dxc5 {[%emt 0:08:33]} Qxc5 {[%emt 0:01:24]} 13. Nb3 {[%emt 0:03:10]} Qe7 {[%emt 0:00:40]} 14. Nfd2 {[%emt 0:02:45]} Rfd8 {[%emt 0:01:51]} 15. e3 {[%emt 0:15:43]} Rac8 {[%emt 0:02:41]} 16. Qe2 {[%emt 0:01:01]} Ne5 {[%emt 0:03:09]} 17. Rad1 {[%emt 0:03:17]} Qc7 {[%emt 0:07:55]} 18. Nd4 {[%emt 0:04:36]} Rd7 {[%emt 0:06:52]} 19. Nb5 {[%emt 0:15:41]} Qb8 {[%emt 0:01:17]} 20. f4 {[%emt 0:06:43]} Nc4 {[%emt 0:02:23]} 21. Nxc4 {[%emt 0:00:07]} Rxc4 {[%emt 0:02:08]} 22. Nd4 {[%emt 0:06:23]} Rc8 {[%emt 0:04:39]} 23. Qc2 {[%emt 0:03:09]} Rcd8 {[%emt 0:05:25]} 24. Qa4 {[%emt 0:01:21]} a6 {[%emt 0:03:11]} 25. a3 {[%emt 0:03:47]} Qc7 {[%emt 0:03:38]} 26. Bf1 {[%emt 0:00:52]} b5 {[%emt 0:02:18]} 27. Qb3 {[%emt 0:00:20]} Ne4 {[%emt 0:01:15]} 28. Be2 {[%emt 0:02:51]} Nc5 {[%emt 0:01:27]} 29. Qc2 {[%emt 0:00:04]} Ne4 {[%emt 0:00:54]} 30. Ra1 {[%emt 0:00:57]} Qc5 {[%emt 0:02:42]} 31. Bg4 {[%emt 0:07:55]} Re7 {[%emt 0:03:07]} 32. Qd3 {[%emt 0:00:01]} Qc4 {[%emt 0:00:45]} 33. Be2 {[%emt 0:01:17]} Qxd3 {[%emt 0:03:09]} 34. Bxd3 {[%emt 0:00:01]} Nc5 {[%emt 0:00:55]} 35. Bc2 {[%emt 0:01:33]} g6 {[%emt 0:01:42]} 36. Nf3 {[%emt 0:01:22]} Kg7 {[%emt 0:00:59]} 37. Ne5 {[%emt 0:00:14]} Nd7 {[%emt 0:00:52]} 38. Nd3 {[%emt 0:00:12]} f5 {[%emt 0:01:54]} 39. a4 {[%emt 0:00:09]} e5 {[%emt 0:03:18]} 40. axb5 {[%emt 0:00:00]} axb5 {[%emt 0:00:00]} 41. Ra5 {[%emt 0:02:12]} Bc6 {[%emt 0:05:35]} 42. Nb4 {[%emt 0:03:13]} Nb8 {[%emt 0:01:08]} 43. Kf2 {[%emt 0:06:47]} exf4 {[%emt 0:02:17]} 44. gxf4 {[%emt 0:00:06]} Be8 {[%emt 0:01:24]} 45. Rd1 {[%emt 0:02:08]} Nc6 {[%emt 0:03:06]} 46. Rxb5 {[%emt 0:03:05]} Nxb4 {[%emt 0:13:30]} 47. Rxb4 {[%emt 0:00:05]} Bf7 {[%emt 0:00:17]} 48. Ba4 {[%emt 0:05:06]} Rc8 {[%emt 0:01:33]} 49. Bb3 {[%emt 0:05:45]} Rc5 {[%emt 0:00:38]} 50. Rd2 {[%emt 0:00:52]} Kf6 {[%emt 0:01:10]} 51. Rbd4 {[%emt 0:01:02]} Rb7 {[%emt 0:01:00]} 52. Ba2 {[%emt 0:02:11]} Rb8 {[%emt 0:01:02]} 53. R4d3 {[%emt 0:00:40]} Rcb5 {[%emt 0:01:56]} 54. b4 {[%emt 0:02:23]} Rc8 {[%emt 0:01:09]} 55. Bb3 {[%emt 0:01:46]} Rb6 {[%emt 0:01:55]} 56. Rc2 {[%emt 0:01:32]} g5 {[%emt 0:04:34]} 57. Bxd5 {[%emt 0:02:10]} Bxd5 {[%emt 0:00:15]} 58. Rxd5 {[%emt 0:00:01]} Rxb4 {[%emt 0:00:11]} 59. Rd6+ {[%emt 0:00:04]} Kg7 {[%emt 0:00:10]} 60. Kg3 {[%emt 0:01:52]} Rbc4 {[%emt 0:00:27]} 61. Rd3 {[%emt 0:00:35]} R8c6 {[%emt 0:00:31]} 62. h4 {[%emt 0:00:39]} Kg6 {[%emt 0:00:07]} 63. fxg5 {[%emt 0:00:22]} hxg5 {[%emt 0:00:02]} 64. hxg5 {[%emt 0:00:01]} Kxg5 {[%emt 0:00:01]} 65. Kf3 {[%emt 0:00:22]} Kf6 {[%emt 0:00:14]} 66. Ke2 {[%emt 0:00:15]} Ke5 {[%emt 0:00:10]} 67. Kd2 {[%emt 0:00:12]} f4 {[%emt 0:00:08]} 68. exf4+ {[%emt 0:00:00]} Kxf4 {[%emt 0:00:01]} 69. Rd8 {[%emt 0:00:28]} Ke4 {[%emt 0:00:48]} 70. Re8+ {[%emt 0:00:11]} Kd5 {[%emt 0:00:16]} 71. Kd3 {[%emt 0:00:02]} Kd6 {[%emt 0:00:20]} 72. Rd8+ {[%emt 0:00:28]} Kc7 {[%emt 0:00:13]} 73. Rh8 {[%emt 0:00:15]} Rg4 {[%emt 0:00:36]} 74. Rh7+ {[%emt 0:00:27]} Kc8 {[%emt 0:00:11]} 75. Ra2 {[%emt 0:01:27]} Rd6+ {[%emt 0:01:33]} 76. Ke3 {[%emt 0:00:13]} Rd7 {[%emt 0:02:02]} 77. Ra8+ {[%emt 0:00:42]} Kb7 {[%emt 0:00:07]} 78. Rxd7+ {[%emt 0:00:05]} Kxa8 {[%emt 0:00:13]} 79. Kd3 {[%emt 0:00:14]} Kb8 {[%emt 0:00:24]} 80. Re7 {[%emt 0:02:39]} Kc8 {[%emt 0:00:18]} 81. Kc2 {[%emt 0:00:27]} Rg2+ {[%emt 0:00:28]} 82. Kb3 {[%emt 0:00:06]} Rg1 {[%emt 0:00:15]} 83. Kb4 {[%emt 0:00:20]} Rb1+ {[%emt 0:01:29]} 84. Kc5 {[%emt 0:00:08]} Rg1 {[%emt 0:00:18]} 85. c4 {[%emt 0:00:48]} Rg8 {[%emt 0:00:07]} 86. Kc6 {[%emt 0:00:22]} Rg6+ {[%emt 0:00:28]} 87. Kb5 {[%emt 0:00:03]} Rg8 {[%emt 0:01:04]} 88. c5 {[%emt 0:00:16]} Rh8 {[%emt 0:00:23]} 89. Kb6 {[%emt 0:00:26]} Rg8 {[%emt 0:00:23]} 90. c6 {[%emt 0:02:21]} Rh8 {[%emt 0:00:14]} 91. Ra7 {[%emt 0:00:08]} Kb8 {[%emt 0:01:18]} 92. c7+ {[%emt 0:00:06]} 1-0

[Event "FIDE WYCC Girls U14 2023"]
[Site "Montesilvano"]
[Date "2023.11.24"]
[Round "11.34"]
[White "Viti, Greta"]
[Black "Zerarga, Imene"]
[Result "1/2-1/2"]
[ECO "B53"]
[WhiteElo "1644"]
[BlackElo "1514"]
[Annotator "NA RC"]
[PlyCount "58"]
[EventDate "2023.11.13"]
[EventType "swiss"]
[EventCountry "ITA"]
[SourceTitle "playchess.com"]
[Source "ChessBase"]
[SourceQuality "1"]
[TimeControl "40/5400+30:1800+30"]

1. e4 {[%emt 0:00:03]} c5 {[%emt 0:00:05]} 2. Nf3 {[%emt 0:00:03]} d6 {[%emt 0:00:06]} 3. d4 {[%emt 0:00:03]} cxd4 {[%emt 0:00:04]} 4. Qxd4 {[%emt 0:00:03]} Nf6 {[%emt 0:00:12]} 5. Nc3 {[%emt 0:00:05]} a6 {[%emt 0:00:22]} 6. Bc4 {[%emt 0:00:05]} Nc6 {[%emt 0:00:27]} 7. Qd3 {[%emt 0:00:10]} g6 {[%emt 0:01:19]} 8. Bf4 {[%emt 0:01:13]} Bg7 {[%emt 0:03:15]} 9. O-O-O {[%emt 0:03:42]} Qa5 {[%emt 0:05:09]} 10. Kb1 {[%emt 0:08:05]} O-O {[%emt 0:00:34]} 11. Bd2 {[%emt 0:09:17]} Qc7 {[%emt 0:02:18]} 12. Bb3 {[%emt 0:02:10]} b5 {[%emt 0:03:18]} 13. Ng1 {[%emt 0:03:45]} Ne5 {[%emt 0:11:45]} 14. Qe2 {[%emt 0:01:19]} Rb8 {[%emt 0:01:05]} 15. Be3 {[%emt 0:06:11]} Nc4 {[%emt 0:07:45]} 16. Bd4 {[%emt 0:04:48]} Be6 {[%emt 0:01:51]} 17. Nf3 {[%emt 0:04:27]} Rfc8 {[%emt 0:00:26]} 18. Ng5 {[%emt 0:08:19]} Bg4 {[%emt 0:00:27]} 19. f3 {[%emt 0:00:32]} Bd7 {[%emt 0:00:11]} 20. g4 {[%emt 0:03:32]} h6 {[%emt 0:01:15]} 21. Nh3 {[%emt 0:00:12]} e5 {[%emt 0:01:18]} 22. Be3 {[%emt 0:01:18]} Nxb2 {[%emt 0:01:32]} 23. Kxb2 {[%emt 0:03:45]} Qxc3+ {[%emt 0:00:06]} 24. Kb1 {[%emt 0:00:07]} h5 {[%emt 0:06:17]} 25. Ng5 {[%emt 0:03:11]} d5 {[%emt 0:00:28]} 26. gxh5 {[%emt 0:01:58]} Nxh5 {[%emt 0:04:12]} 27. Bxd5 {[%emt 0:09:13]} Qb4+ {[%emt 0:00:46]} 28. Ka1 {[%emt 0:04:04]} Qc3+ {[%emt 0:00:13]} 29. Kb1 {[%emt 0:00:01]} Qb4+ {[%emt 0:00:08]} 1/2-1/2

[Event "FIDE WYCC Girls U14 2023"]
[Site "Montesilvano"]
[Date "2023.11.24"]
[Round "11.35"]
[White "Caku, Kler"]
[Black "Hong, Jueun"]
[Result "1-0"]
[ECO "B51"]
[WhiteElo "1740"]
[BlackElo "1299"]
[Annotator "NA RC"]
[PlyCount "101"]
[EventDate "2023.11.13"]
[EventType "swiss"]
[EventCountry "ITA"]
[SourceTitle "playchess.com"]
[Source "ChessBase"]
[SourceQuality "1"]
[TimeControl "40/5400+30:1800+30"]

1. e4 {[%emt 0:00:04]} c5 {[%emt 0:00:04]} 2. Nf3 {[%emt 0:00:28]} d6 {[%emt 0:00:05]} 3. Bb5+ {[%emt 0:00:33]} Nd7 {[%emt 0:00:06]} 4. O-O {[%emt 0:00:06]} a6 {[%emt 0:00:04]} 5. Bxd7+ {[%emt 0:00:32]} Bxd7 {[%emt 0:00:06]} 6. d3 {[%emt 0:00:12]} g6 {[%emt 0:01:41]} 7. c3 {[%emt 0:00:30]} Nf6 {[%emt 0:01:05]} 8. Re1 {[%emt 0:00:42]} Bc6 {[%emt 0:02:00]} 9. Nbd2 {[%emt 0:06:16]} Bg7 {[%emt 0:05:34]} 10. d4 {[%emt 0:02:18]} cxd4 {[%emt 0:02:22]} 11. Nxd4 {[%emt 0:03:04]} O-O {[%emt 0:02:27]} 12. Nxc6 {[%emt 0:00:47]} bxc6 {[%emt 0:00:01]} 13. Qc2 {[%emt 0:01:12]} Qb6 {[%emt 0:04:39]} 14. Nb3 {[%emt 0:03:31]} Rab8 {[%emt 0:02:09]} 15. Be3 {[%emt 0:00:10]} Qb5 {[%emt 0:03:48]} 16. c4 {[%emt 0:02:06]} Qb4 {[%emt 0:01:53]} 17. Bd2 {[%emt 0:00:35]} Qb7 {[%emt 0:01:55]} 18. Bc3 {[%emt 0:01:24]} Nd7 {[%emt 0:04:31]} 19. Bxg7 {[%emt 0:04:43]} Kxg7 {[%emt 0:00:02]} 20. Re2 {[%emt 0:02:07]} Rfc8 {[%emt 0:04:53]} 21. Rd1 {[%emt 0:01:32]} Qb4 {[%emt 0:04:41]} 22. f4 {[%emt 0:04:23]} Rb7 {[%emt 0:08:10]} 23. e5 {[%emt 0:00:46]} dxe5 {[%emt 0:02:32]} 24. fxe5 {[%emt 0:00:51]} Nf8 {[%emt 0:01:18]} 25. Rf2 {[%emt 0:12:50]} Ne6 {[%emt 0:03:25]} 26. Nc1 {[%emt 0:03:28]} Qa5 {[%emt 0:01:41]} 27. b3 {[%emt 0:03:13]} Qxe5 {[%emt 0:01:03]} 28. Nd3 {[%emt 0:00:22]} Qh5 {[%emt 0:02:44]} 29. Rdf1 {[%emt 0:01:04]} Rf8 {[%emt 0:03:10]} 30. Qc3+ {[%emt 0:01:27]} Kg8 {[%emt 0:00:55]} 31. Ne5 {[%emt 0:00:49]} Nd8 {[%emt 0:00:12]} 32. c5 {[%emt 0:07:10]} Qg5 {[%emt 0:07:01]} 33. b4 {[%emt 0:01:04]} Qh4 {[%emt 0:02:51]} 34. Rf4 {[%emt 0:02:52]} Qh5 {[%emt 0:01:08]} 35. Qe3 {[%emt 0:02:16]} Ra7 {[%emt 0:06:13]} 36. a4 {[%emt 0:00:32]} Rb7 {[%emt 0:00:20]} 37. Qe4 {[%emt 0:05:09]} Qh6 {[%emt 0:00:54]} 38. Nxc6 {[%emt 0:02:51]} Nxc6 {[%emt 0:00:16]} 39. Qxc6 {[%emt 0:00:07]} Ra7 {[%emt 0:01:42]} 40. Qb6 {[%emt 0:00:00]} Raa8 {[%emt 0:00:00]} 41. Qb7 {[%emt 0:02:48]} Qg5 {[%emt 0:01:31]} 42. Rxf7 {[%emt 0:04:47]} Qe3+ {[%emt 0:02:43]} 43. Kh1 {[%emt 0:00:16]} Rab8 {[%emt 0:02:07]} 44. Rxf8+ {[%emt 0:00:44]} Rxf8 {[%emt 0:00:02]} 45. Rxf8+ {[%emt 0:00:57]} Kxf8 {[%emt 0:00:02]} 46. Qf3+ {[%emt 0:00:30]} Qxf3 {[%emt 0:00:07]} 47. gxf3 {[%emt 0:00:05]} Ke8 {[%emt 0:00:12]} 48. b5 {[%emt 0:00:34]} axb5 {[%emt 0:00:01]} 49. axb5 {[%emt 0:00:17]} Kd8 {[%emt 0:00:18]} 50. b6 {[%emt 0:00:07]} Kc8 {[%emt 0:00:11]} 51. c6 {[%emt 0:00:06]} 1-0